[Event "Kuwait Championship Stage-I 2024"]
[Site "Qadsiya"]
[Date "2024.01.26"]
[Round "4.7"]
[White "Alajmi, Fahad KH"]
[Black "Alruwaiyeh, Musa"]
[Result "0-1"]
[ECO "E81"]
[WhiteElo "1284"]
[BlackElo "1505"]
[Annotator "NA RC COMBH"]
[PlyCount "95"]
[EventDate "2024.01.22"]
[EventType "swiss"]
[EventCountry "KUW"]
[SourceTitle "playchess.com"]
[Source "ChessBase"]
[SourceQuality "1"]
[TimeControl "5400+30"]

1. d4 {[%emt 0:03:26]} Nf6 {[%emt 0:00:27]} 2. c4 {[%emt 0:00:48]} g6 {[%emt 0:01:02]} 3. Nc3 {[%emt 0:00:09]} Bg7 {[%emt 0:00:20]} 4. e4 {[%emt 0:00:15]} d6 {[%emt 0:00:22]} 5. Nge2 {[%emt 0:00:21]} O-O {[%emt 0:01:02]} 6. f3 {[%emt 0:00:23]} Nbd7 {[%emt 0:07:07]} 7. Bg5 {[%emt 0:00:12]} c5 {[%emt 0:03:15]} 8. d5 {[%emt 0:00:20]} h6 {[%emt 0:04:30]} 9. Be3 {[%emt 0:00:14]} Nb6 {[%emt 0:02:05]} 10. Ng3 {[%emt 0:00:14]} e6 {[%emt 0:05:24]} 11. Qd2 {[%emt 0:00:12]} exd5 {[%emt 0:00:44]} 12. cxd5 {[%emt 0:00:38]} Kh7 {[%emt 0:02:35]} 13. Bd3 {[%emt 0:00:50]} Nbd7 {[%emt 0:01:54]} 14. f4 {[%emt 0:02:32]} Ng4 {[%emt 0:01:00]} 15. Bg1 {[%emt 0:02:16]} a6 {[%emt 0:02:31]} 16. a4 {[%emt 0:04:20]} Rb8 {[%emt 0:03:16]} 17. Nf1 {[%emt 0:01:13]} Bxc3 {[%emt 0:02:12]} 18. bxc3 {[%emt 0:02:19]} b5 {[%emt 0:00:01]} 19. Ne3 {[%emt 0:00:41]} Ndf6 {[%emt 0:02:17]} 20. h3 {[%emt 0:01:40]} Nxe3 {[%emt 0:00:46]} 21. Bxe3 {[%emt 0:00:12]} Re8 {[%emt 0:00:41]} 22. O-O {[%emt 0:03:09]} Nxe4 {[%emt 0:00:48]} 23. Qc2 {[%emt 0:00:56]} f5 {[%emt 0:05:12]} 24. axb5 {[%emt 0:01:42]} axb5 {[%emt 0:00:41]} 25. Ra7+ {[%emt 0:01:40]} Bd7 {[%emt 0:04:39]} 26. c4 {[%emt 0:12:23]} b4 {[%emt 0:01:21]} 27. Bc1 {[%emt 0:00:09]} Ra8 {[%emt 0:02:57]} 28. Rxa8 {[%emt 0:01:56]} Qxa8 {[%emt 0:00:02]} 29. Bb2 {[%emt 0:00:11]} Ba4 {[%emt 0:01:53]} 30. Qc1 {[%emt 0:02:00]} Ng3 {[%emt 0:03:01]} 31. Re1 {[%emt 0:01:20]} Ne4 {[%emt 0:02:01]} 32. Qb1 {[%emt 0:02:44]} Nc3 {[%emt 0:01:39]} 33. Qa1 {[%emt 0:06:38]} Rxe1+ {[%emt 0:06:11]} 34. Qxe1 {[%emt 0:00:09]} Qe8 {[%emt 0:00:12]} 35. Qxe8 {[%emt 0:14:10]} Bxe8 {[%emt 0:00:08]} 36. Bxc3 {[%emt 0:00:21]} bxc3 {[%emt 0:00:02]} 37. Bc2 {[%emt 0:00:09]} g5 {[%emt 0:02:57]} 38. Kf2 {[%emt 0:01:26]} gxf4 {[%emt 0:02:35]} 39. Kf3 {[%emt 0:00:52]} Bg6 {[%emt 0:01:18]} 40. Kxf4 {[%emt 0:01:38]} Kg7 {[%emt 0:00:04]} 41. Ba4 {[%emt 0:04:52]} Kf6 {[%emt 0:01:00]} 42. Bc2 {[%emt 0:00:13]} Be8 {[%emt 0:06:59]} 43. g3 {[%emt 0:08:09]} h5 {[%emt 0:00:57]} 44. h4 {[%emt 0:09:11]} Bd7 {[%emt 0:00:42]} 45. Bd1 {[%emt 0:00:29]} Bc8 {[%emt 0:01:21]} 46. Ke3 {[%emt 0:01:52]} f4+ {[%emt 0:00:26]} 47. Kd3 {[%emt 0:01:58]} fxg3 {[%emt 0:00:50]} 48. Kxc3 {[%emt 0:02:21]} 0-1

[Event "Kuwait Championship Stage-I 2024"]
[Site "Qadsiya"]
[Date "2024.01.26"]
[Round "4.8"]
[White "Aldaihani, Turki"]
[Black "Almanaseer, Talal"]
[Result "1-0"]
[ECO "A05"]
[WhiteElo "1475"]
[BlackElo "1249"]
[Annotator "NA RC COMBH"]
[PlyCount "48"]
[EventDate "2024.01.22"]
[EventType "swiss"]
[EventCountry "KUW"]
[SourceTitle "playchess.com"]
[Source "ChessBase"]
[SourceQuality "1"]
[TimeControl "5400+30"]

1. Nf3 {[%emt 0:26:36]} Nf6 {[%emt 0:01:21]} 2. a4 {[%emt 0:00:05]} d5 {[%emt 0:00:46]} 3. g3 {[%emt 0:10:08]} Bf5 {[%emt 0:04:31]} 4. Bg2 {[%emt 0:00:25]} e6 {[%emt 0:00:20]} 5. c4 {[%emt 0:01:12]} Bb4 {[%emt 0:10:11]} 6. Qb3 {[%emt 0:02:01]} a5 {[%emt 0:08:19]} 7. Nc3 {[%emt 0:03:34]} c6 {[%emt 0:03:27]} 8. O-O {[%emt 0:02:24]} h6 {[%emt 0:06:17]} 9. d4 {[%emt 0:00:24]} dxc4 {[%emt 0:04:11]} 10. Qxc4 {[%emt 0:10:44]} O-O {[%emt 0:01:51]} 11. Ne5 {[%emt 0:01:51]} Nbd7 {[%emt 0:03:41]} 12. e4 {[%emt 0:00:51]} Nb6 {[%emt 0:04:44]} 13. Qe2 {[%emt 0:02:33]} Bh7 {[%emt 0:03:28]} 14. Rd1 {[%emt 0:00:55]} Qe7 {[%emt 0:04:32]} 15. Nd3 {[%emt 0:01:44]} Rfd8 {[%emt 0:08:05]} 16. h4 {[%emt 0:02:56]} Bg6 {[%emt 0:12:42]} 17. Nf4 {[%emt 0:02:29]} Bh7 {[%emt 0:07:03]} 18. Nd3 {[%emt 0:03:39]} Bg6 {[%emt 0:01:33]} 19. g4 {[%emt 0:01:13]} Nxe4 {[%emt 0:06:45]} 20. Bxe4 {[%emt 0:01:40]} Qxh4 {[%emt 0:01:05]} 21. Bxg6 {[%emt 0:00:37]} Rxd4 {[%emt 0:01:31]} 22. Bxf7+ {[%emt 0:02:32]} Kh8 {[%emt 0:02:08]} 23. Ne5 {[%emt 0:00:17]} Rxd1+ {[%emt 0:02:23]} 24. Qxd1 {[%emt 0:00:23]} g5 {[%emt 0:01:36]} 1-0

[Event "Kuwait Championship Stage-I 2024"]
[Site "Qadsiya"]
[Date "2024.01.26"]
[Round "4.9"]
[White "ALjadi, Athbi"]
[Black "Al Subaie, Nasser"]
[Result "0-1"]
[ECO "C50"]
[WhiteElo "1188"]
[BlackElo "1457"]
[Annotator "NA COMBH"]
[PlyCount "100"]
[EventDate "2024.01.22"]
[EventType "swiss"]
[EventCountry "KUW"]
[SourceTitle "playchess.com"]
[Source "ChessBase"]
[SourceQuality "1"]
[TimeControl "5400+30"]

1. e4 {[%emt 0:00:23]} e5 {[%emt 0:00:31]} 2. Nf3 {[%emt 0:00:13]} Nc6 {[%emt 0:00:10]} 3. Bc4 {[%emt 0:00:33]} Bc5 {[%emt 0:00:30]} 4. a3 {[%emt 0:03:19]} Nd4 {[%emt 0:11:05]} 5. d3 {[%emt 0:08:38]} Nxf3+ {[%emt 0:06:34]} 6. Qxf3 {[%emt 0:00:15]} Nf6 {[%emt 0:00:05]} 7. Nc3 {[%emt 0:05:16]} c6 {[%emt 0:02:18]} 8. Bg5 {[%emt 0:05:58]} h6 {[%emt 0:02:07]} 9. Bd2 {[%emt 0:14:18]} a6 {[%emt 0:02:38]} 10. b4 {[%emt 0:06:27]} Bd4 {[%emt 0:00:41]} 11. h3 {[%emt 0:02:22]} d5 {[%emt 0:01:17]} 12. Bb3 {[%emt 0:01:48]} Be6 {[%emt 0:02:21]} 13. Rd1 {[%emt 0:04:23]} O-O {[%emt 0:05:06]} 14. Ne2 {[%emt 0:08:12]} Ba7 {[%emt 0:22:05]} 15. Qg3 {[%emt 0:02:38]} Nd7 {[%emt 0:20:11]} 16. Bxh6 {[%emt 0:00:24]} Qf6 {[%emt 0:00:04]} 17. Bg5 {[%emt 0:02:15]} Bxf2+ {[%emt 0:00:44]} 18. Qxf2 {[%emt 0:01:18]} Qxg5 {[%emt 0:00:07]} 19. exd5 {[%emt 0:04:10]} cxd5 {[%emt 0:02:41]} 20. Qg3 {[%emt 0:04:09]} Qxg3+ {[%emt 0:04:42]} 21. Nxg3 {[%emt 0:00:05]} a5 {[%emt 0:00:50]} 22. c4 {[%emt 0:05:39]} dxc4 {[%emt 0:03:59]} 23. Bxc4 {[%emt 0:00:28]} Rfe8 {[%emt 0:04:40]} 24. Ne4 {[%emt 0:02:36]} axb4 {[%emt 0:00:49]} 25. axb4 {[%emt 0:01:20]} Nb6 {[%emt 0:01:06]} 26. Nd6 {[%emt 0:01:31]} Re7 {[%emt 0:01:31]} 27. Bxe6 {[%emt 0:00:36]} fxe6 {[%emt 0:02:33]} 28. Ke2 {[%emt 0:02:09]} Nd5 {[%emt 0:00:12]} 29. Ne4 {[%emt 0:02:57]} Nxb4 {[%emt 0:00:11]} 30. Rd2 {[%emt 0:01:16]} Nd5 {[%emt 0:00:35]} 31. g3 {[%emt 0:01:14]} b5 {[%emt 0:00:11]} 32. Rb2 {[%emt 0:01:02]} b4 {[%emt 0:00:29]} 33. Rhb1 {[%emt 0:00:34]} Rc7 {[%emt 0:00:42]} 34. Kd2 {[%emt 0:00:42]} Nc3 {[%emt 0:00:55]} 35. Rc1 {[%emt 0:01:53]} Rac8 {[%emt 0:00:17]} 36. Rbc2 {[%emt 0:01:27]} Nb1+ {[%emt 0:00:45]} 37. Kd1 {[%emt 0:00:49]} Rxc2 {[%emt 0:00:55]} 38. Rxc2 {[%emt 0:00:19]} Rd8 {[%emt 0:01:26]} 39. Kc1 {[%emt 0:01:12]} Na3 {[%emt 0:00:15]} 40. Rd2 {[%emt 0:03:26]} Nb5 {[%emt 0:00:22]} 41. Kb2 {[%emt 0:01:06]} Nd4 {[%emt 0:00:06]} 42. Nc5 {[%emt 0:01:00]} Rd5 {[%emt 0:00:18]} 43. Nb3 {[%emt 0:00:51]} Nf3 {[%emt 0:00:05]} 44. Rd1 {[%emt 0:00:33]} e4 {[%emt 0:00:18]} 45. d4 {[%emt 0:00:08]} e5 {[%emt 0:00:08]} 46. Nc5 {[%emt 0:00:34]} e3 {[%emt 0:00:27]} 47. Nd3 {[%emt 0:01:02]} Rxd4 {[%emt 0:00:33]} 48. Nxe5 {[%emt 0:00:27]} Rxd1 {[%emt 0:01:28]} 49. Nxf3 {[%emt 0:00:13]} e2 {[%emt 0:00:11]} 50. Kb3 {[%emt 0:00:44]} Rd3+ {[%emt 0:03:16]} 0-1

[Event "Kuwait Championship Stage-I 2024"]
[Site "Qadsiya"]
[Date "2024.01.26"]
[Round "4.10"]
[White "Alfaras, Abdulaziz"]
[Black "Alghanim, Faisal"]
[Result "0-1"]
[ECO "A07"]
[WhiteElo "1438"]
[BlackElo "1280"]
[Annotator "NA RC COMBH"]
[PlyCount "110"]
[EventDate "2024.01.22"]
[EventType "swiss"]
[EventCountry "KUW"]
[SourceTitle "playchess.com"]
[Source "ChessBase"]
[SourceQuality "1"]
[TimeControl "5400+30"]

1. Nf3 {[%emt 0:00:47]} Nf6 {[%emt 0:00:24]} 2. g3 {[%emt 0:01:12]} d5 {[%emt 0:00:05]} 3. d3 {[%emt 0:00:03]} c6 {[%emt 0:00:11]} 4. Nbd2 {[%emt 0:00:32]} Bg4 {[%emt 0:00:27]} 5. Bg2 {[%emt 0:00:11]} Nbd7 {[%emt 0:00:17]} 6. c3 {[%emt 0:01:01]} e5 {[%emt 0:04:35]} 7. Qc2 {[%emt 0:01:01]} Bc5 {[%emt 0:04:18]} 8. O-O {[%emt 0:00:45]} O-O {[%emt 0:00:55]} 9. e4 {[%emt 0:00:50]} dxe4 {[%emt 0:01:41]} 10. dxe4 {[%emt 0:00:36]} Re8 {[%emt 0:02:12]} 11. h3 {[%emt 0:04:48]} Bh5 {[%emt 0:00:22]} 12. Re1 {[%emt 0:00:23]} h6 {[%emt 0:04:06]} 13. Nf1 {[%emt 0:00:29]} a5 {[%emt 0:05:05]} 14. a4 {[%emt 0:00:43]} b5 {[%emt 0:09:53]} 15. Bd2 {[%emt 0:10:55]} bxa4 {[%emt 0:09:50]} 16. Qxa4 {[%emt 0:06:54]} Qb6 {[%emt 0:10:30]} 17. Be3 {[%emt 0:15:51]} Bxe3 {[%emt 0:10:56]} 18. Nxe3 {[%emt 0:08:46]} Qxb2 {[%emt 0:03:18]} 19. Qxc6 {[%emt 0:12:45]} Rec8 {[%emt 0:03:20]} 20. Qd6 {[%emt 0:07:30]} Qxf2+ {[%emt 0:04:58]} 21. Kxf2 {[%emt 0:01:46]} Nxe4+ {[%emt 0:00:07]} 22. Kg1 {[%emt 0:00:08]} Nxd6 {[%emt 0:00:09]} 23. Nxe5 {[%emt 0:00:09]} Nxe5 {[%emt 0:01:34]} 24. Bxa8 {[%emt 0:00:25]} Rxa8 {[%emt 0:00:11]} 25. Kf1 {[%emt 0:01:15]} a4 {[%emt 0:05:38]} 26. Nd5 {[%emt 0:00:18]} Nec4 {[%emt 0:01:48]} 27. g4 {[%emt 0:01:54]} Bg6 {[%emt 0:00:22]} 28. Red1 {[%emt 0:00:48]} Be4 {[%emt 0:02:36]} 29. Kg1 {[%emt 0:01:33]} Bxd5 {[%emt 0:01:26]} 30. Rxd5 {[%emt 0:00:05]} a3 {[%emt 0:00:24]} 31. Kf2 {[%emt 0:00:19]} a2 {[%emt 0:02:17]} 32. Ke2 {[%emt 0:00:35]} f6 {[%emt 0:06:28]} 33. Rd4 {[%emt 0:00:21]} Kf7 {[%emt 0:02:37]} 34. Kd3 {[%emt 0:00:17]} Ra4 {[%emt 0:02:42]} 35. Kc2 {[%emt 0:00:12]} Ra3 {[%emt 0:00:55]} 36. Kd3 {[%emt 0:01:16]} Nb2+ {[%emt 0:01:10]} 37. Kc2 {[%emt 0:00:36]} Ndc4 {[%emt 0:00:26]} 38. Rd7+ {[%emt 0:00:02]} Kg6 {[%emt 0:00:34]} 39. Rb7 {[%emt 0:00:06]} Na4 {[%emt 0:00:23]} 40. Rb4 {[%emt 0:00:27]} Rxc3+ {[%emt 0:00:25]} 41. Kd1 {[%emt 0:00:27]} Nab2+ {[%emt 0:00:51]} 42. Ke2 {[%emt 0:00:42]} Rxh3 {[%emt 0:00:19]} 43. Rxa2 {[%emt 0:00:14]} Kg5 {[%emt 0:00:17]} 44. Kf1 {[%emt 0:00:56]} Ne3+ {[%emt 0:00:38]} 45. Kg1 {[%emt 0:00:04]} Nbc4 {[%emt 0:00:31]} 46. Rb7 {[%emt 0:22:33]} Kg6 {[%emt 0:01:19]} 47. Raa7 {[%emt 0:00:00]} Rg3+ {[%emt 0:00:00]} 48. Kf2 {[%emt 0:00:00]} Rxg4 {[%emt 0:00:03]} 49. Rxg7+ {[%emt 0:00:00]} Kf5 {[%emt 0:00:19]} 50. Rac7 {[%emt 0:00:00]} Rxg7 {[%emt 0:00:39]} 51. Rxg7 {[%emt 0:00:00]} Ng4+ {[%emt 0:00:18]} 52. Kg3 {[%emt 0:00:00]} Nce3 {[%emt 0:00:45]} 53. Kh4 {[%emt 0:00:00]} Kf4 {[%emt 0:00:26]} 54. Kh5 {[%emt 0:00:00]} f5 {[%emt 0:00:37]} 55. Rd7 {[%emt 0:00:00]} Nf6+ {[%emt 0:00:07]} 0-1

[Event "Kuwait Championship Stage-I 2024"]
[Site "Qadsiya"]
[Date "2024.01.26"]
[Round "4.11"]
[White "Alruwayeh, Talal"]
[Black "Alasfour, Zaid"]
[Result "1-0"]
[ECO "A16"]
[WhiteElo "1407"]
[BlackElo "1188"]
[Annotator "NA RC COMBH"]
[PlyCount "105"]
[EventDate "2024.01.22"]
[EventType "swiss"]
[EventCountry "KUW"]
[SourceTitle "playchess.com"]
[Source "ChessBase"]
[SourceQuality "1"]
[TimeControl "5400+30"]

1. e4 {[%emt 0:01:58]} d6 {[%emt 0:00:11]} 2. c4 {[%emt 0:01:26]} Nf6 {[%emt 0:00:34]} 3. Nc3 {[%emt 0:01:22]} g6 {[%emt 0:00:24]} 4. Nf3 {[%emt 0:01:00]} Bg7 {[%emt 0:00:18]} 5. d3 {[%emt 0:00:46]} e5 {[%emt 0:00:59]} 6. Bg5 {[%emt 0:00:51]} h6 {[%emt 0:03:20]} 7. Bd2 {[%emt 0:00:57]} c5 {[%emt 0:01:13]} 8. Be2 {[%emt 0:00:44]} Nc6 {[%emt 0:00:42]} 9. Nd5 {[%emt 0:03:42]} Bg4 {[%emt 0:02:20]} 10. Qa4 {[%emt 0:01:33]} Bd7 {[%emt 0:08:11]} 11. Qb3 {[%emt 0:02:43]} Nxd5 {[%emt 0:01:49]} 12. cxd5 {[%emt 0:00:43]} Nd4 {[%emt 0:03:22]} 13. Nxd4 {[%emt 0:00:31]} cxd4 {[%emt 0:00:38]} 14. Qb4 {[%emt 0:02:03]} Qb6 {[%emt 0:05:07]} 15. Qxb6 {[%emt 0:00:41]} axb6 {[%emt 0:00:02]} 16. Bb4 {[%emt 0:00:25]} Ke7 {[%emt 0:00:09]} 17. a3 {[%emt 0:00:27]} Rac8 {[%emt 0:00:40]} 18. Kd2 {[%emt 0:00:22]} h5 {[%emt 0:00:58]} 19. Kd1 {[%emt 0:02:35]} Ba4+ {[%emt 0:00:32]} 20. Ke1 {[%emt 0:00:59]} b5 {[%emt 0:02:11]} 21. Bd1 {[%emt 0:01:44]} Bh6 {[%emt 0:01:52]} 22. b3 {[%emt 0:01:31]} Bxb3 {[%emt 0:03:22]} 23. Bxb3 {[%emt 0:00:11]} Rc7 {[%emt 0:02:25]} 24. Ke2 {[%emt 0:01:25]} Rhc8 {[%emt 0:01:37]} 25. Rhd1 {[%emt 0:02:23]} Kd7 {[%emt 0:00:39]} 26. Rab1 {[%emt 0:00:39]} Rc3 {[%emt 0:08:26]} 27. Bxc3 {[%emt 0:06:44]} dxc3 {[%emt 0:00:32]} 28. Bc2 {[%emt 0:00:42]} Rc5 {[%emt 0:01:24]} 29. a4 {[%emt 0:00:52]} bxa4 {[%emt 0:00:58]} 30. Rxb7+ {[%emt 0:04:50]} Kc8 {[%emt 0:01:02]} 31. Rdb1 {[%emt 0:00:19]} a3 {[%emt 0:00:20]} 32. Rb8+ {[%emt 0:00:41]} Kd7 {[%emt 0:00:24]} 33. R1b7+ {[%emt 0:59:11]} Rc7 {[%emt 0:50:19]} 34. Ba4+ {[%emt 0:00:00]} Ke7 {[%emt 0:00:00]} 35. Rxc7+ {[%emt 0:00:00]} Kf6 {[%emt 0:00:00]} 36. Rxc3 {[%emt 0:00:00]} a2 {[%emt 0:00:00]} 37. Ra3 {[%emt 0:00:00]} h4 {[%emt 0:00:00]} 38. Rxa2 {[%emt 0:00:00]} h3 {[%emt 0:00:00]} 39. gxh3 {[%emt 0:00:00]} Bf4 {[%emt 0:00:00]} 40. Rb6 {[%emt 0:00:00]} Kg5 {[%emt 0:00:00]} 41. Rxd6 {[%emt 0:00:00]} f5 {[%emt 0:00:00]} 42. Rd8 {[%emt 0:00:00]} fxe4 {[%emt 0:00:00]} 43. dxe4 {[%emt 0:00:00]} Bxh2 {[%emt 0:00:00]} 44. Kf3 {[%emt 0:00:00]} Bf4 {[%emt 0:00:00]} 45. Ra1 {[%emt 0:00:00]} Kh6 {[%emt 0:00:00]} 46. Rb1 {[%emt 0:00:00]} Bg5 {[%emt 0:00:00]} 47. Re8 {[%emt 0:00:00]} Bf6 {[%emt 0:00:00]} 48. Kg4 {[%emt 0:00:00]} g5 {[%emt 0:00:00]} 49. Re6 {[%emt 0:00:00]} Kg7 {[%emt 0:00:00]} 50. Rb7+ {[%emt 0:00:00]} Kf8 {[%emt 0:00:00]} 51. Rxf6+ {[%emt 0:00:00]} Kg8 {[%emt 0:00:00]} 52. Re6 {[%emt 0:00:00]} Kf8 {[%emt 0:00:00]} 53. Re8# {[%emt 0:10:00]} 1-0

[Event "Kuwait Championship Stage-I 2024"]
[Site "Qadsiya"]
[Date "2024.01.27"]
[Round "5.1"]
[White "Alhejab, Meshal"]
[Black "Al Ibrahim, Abdulrahman"]
[Result "1-0"]
[ECO "C97"]
[WhiteElo "1787"]
[BlackElo "1854"]
[Annotator "NA RC COMBH"]
[PlyCount "129"]
[EventDate "2024.01.22"]
[EventType "swiss"]
[EventCountry "KUW"]
[SourceTitle "playchess.com"]
[Source "ChessBase"]
[SourceQuality "1"]
[TimeControl "5400+30"]

1. e4 {[%emt 0:00:02]} e5 {[%emt 0:00:09]} 2. Nf3 {[%emt 0:00:15]} Nc6 {[%emt 0:00:07]} 3. Bb5 {[%emt 0:00:08]} a6 {[%emt 0:00:06]} 4. Ba4 {[%emt 0:00:05]} Nf6 {[%emt 0:00:09]} 5. O-O {[%emt 0:00:12]} Be7 {[%emt 0:00:26]} 6. Re1 {[%emt 0:00:18]} b5 {[%emt 0:00:06]} 7. Bb3 {[%emt 0:00:03]} d6 {[%emt 0:00:09]} 8. c3 {[%emt 0:01:25]} O-O {[%emt 0:00:37]} 9. h3 {[%emt 0:00:14]} Na5 {[%emt 0:00:11]} 10. Bc2 {[%emt 0:00:08]} c5 {[%emt 0:00:06]} 11. d4 {[%emt 0:00:37]} Qc7 {[%emt 0:00:09]} 12. Nbd2 {[%emt 0:01:06]} Be6 {[%emt 0:02:54]} 13. d5 {[%emt 0:07:58]} Bd7 {[%emt 0:00:24]} 14. Nf1 {[%emt 0:01:52]} Nc4 {[%emt 0:02:32]} 15. g4 {[%emt 0:12:45]} h5 {[%emt 0:05:13]} 16. g5 {[%emt 0:03:08]} Nh7 {[%emt 0:00:29]} 17. h4 {[%emt 0:13:05]} g6 {[%emt 0:01:56]} 18. N3h2 {[%emt 0:13:19]} f6 {[%emt 0:25:20]} 19. b3 {[%emt 0:00:26]} Nb6 {[%emt 0:00:06]} 20. f4 {[%emt 0:02:28]} fxg5 {[%emt 0:07:57]} 21. fxg5 {[%emt 0:06:18]} c4 {[%emt 0:05:24]} 22. Be3 {[%emt 0:02:51]} a5 {[%emt 0:07:12]} 23. Nd2 {[%emt 0:04:30]} cxb3 {[%emt 0:06:20]} 24. axb3 {[%emt 0:00:28]} a4 {[%emt 0:01:06]} 25. Qe2 {[%emt 0:29:19]} axb3 {[%emt 0:05:12]} 26. Bxb3 {[%emt 0:00:00]} Qxc3 {[%emt 0:10:02]} 27. Rac1 {[%emt 0:00:00]} Qa5 {[%emt 0:00:05]} 28. Kg2 {[%emt 0:00:00]} Na4 {[%emt 0:08:01]} 29. Ndf3 {[%emt 0:00:00]} Bd8 {[%emt 0:02:47]} 30. Qa2 {[%emt 0:00:25]} Bb6 {[%emt 0:02:39]} 31. Bd2 {[%emt 0:00:20]} Qa7 {[%emt 0:00:16]} 32. Ra1 {[%emt 0:01:30]} Rf7 {[%emt 0:03:15]} 33. Bb4 {[%emt 0:00:32]} Bc5 {[%emt 0:01:50]} 34. Qa3 {[%emt 0:00:40]} Bxb4 {[%emt 0:01:46]} 35. Qxb4 {[%emt 0:00:07]} Raf8 {[%emt 0:00:57]} 36. Qxd6 {[%emt 0:00:42]} Bg4 {[%emt 0:01:05]} 37. Qxg6+ {[%emt 0:00:57]} Kh8 {[%emt 0:00:03]} 38. Bd1 {[%emt 0:00:43]} Qc5 {[%emt 0:01:01]} 39. Rf1 {[%emt 0:00:31]} Qc3 {[%emt 0:00:54]} 40. Ra2 {[%emt 0:00:31]} Nb2 {[%emt 0:00:10]} 41. Be2 {[%emt 0:00:15]} Nc4 {[%emt 0:00:51]} 42. Bxc4 {[%emt 0:00:14]} Qxc4 {[%emt 0:00:09]} 43. Raf2 {[%emt 0:00:53]} Qd3 {[%emt 0:00:58]} 44. Qd6 {[%emt 0:00:30]} Qxe4 {[%emt 0:00:41]} 45. Qxe5+ {[%emt 0:00:24]} Qxe5 {[%emt 0:00:06]} 46. Nxe5 {[%emt 0:00:05]} Bh3+ {[%emt 0:00:57]} 47. Kg3 {[%emt 0:00:51]} Rxf2 {[%emt 0:00:32]} 48. Rxf2 {[%emt 0:00:07]} Rxf2 {[%emt 0:00:27]} 49. Kxf2 {[%emt 0:00:05]} Nf8 {[%emt 0:00:09]} 50. Nhf3 {[%emt 0:00:16]} Kg7 {[%emt 0:00:12]} 51. Nd4 {[%emt 0:00:28]} Nd7 {[%emt 0:01:15]} 52. Nd3 {[%emt 0:00:29]} Nb6 {[%emt 0:00:22]} 53. Nf4 {[%emt 0:00:18]} Bg4 {[%emt 0:00:37]} 54. Nxb5 {[%emt 0:00:09]} Kf8 {[%emt 0:00:29]} 55. Ke3 {[%emt 0:00:22]} Bd7 {[%emt 0:00:24]} 56. Nc7 {[%emt 0:00:23]} Ke7 {[%emt 0:00:21]} 57. Ke4 {[%emt 0:02:00]} Bg4 {[%emt 0:00:37]} 58. g6 {[%emt 0:00:16]} Nd7 {[%emt 0:00:22]} 59. Nce6 {[%emt 0:00:56]} Nf6+ {[%emt 0:00:47]} 60. Ke5 {[%emt 0:00:34]} Nd7+ {[%emt 0:00:27]} 61. Kd4 {[%emt 0:00:07]} Bf3 {[%emt 0:00:32]} 62. g7 {[%emt 0:00:42]} Kf7 {[%emt 0:00:28]} 63. Ng5+ {[%emt 0:00:16]} Kxg7 {[%emt 0:00:12]} 64. Nxf3 {[%emt 0:00:11]} Nf6 {[%emt 0:00:18]} 65. Ke5 {[%emt 0:00:06]} 1-0

[Event "Kuwait Championship Stage-I 2024"]
[Site "Qadsiya"]
[Date "2024.01.27"]
[Round "5.2"]
[White "Alenezi, Hamad"]
[Black "Alsaqer, Meshal"]
[Result "1/2-1/2"]
[ECO "A40"]
[WhiteElo "1419"]
[BlackElo "1753"]
[Annotator "NA RC COMBH"]
[PlyCount "24"]
[EventDate "2024.01.22"]
[EventType "swiss"]
[EventCountry "KUW"]
[SourceTitle "playchess.com"]
[Source "ChessBase"]
[SourceQuality "1"]
[TimeControl "5400+30"]

1. e4 {[%emt 0:00:04]} e6 {[%emt 0:03:29]} 2. d4 {[%emt 0:00:16]} b6 {[%emt 0:00:23]} 3. c4 {[%emt 0:05:15]} Bb7 {[%emt 0:00:26]} 4. Bd3 {[%emt 0:00:21]} d5 {[%emt 0:01:34]} 5. cxd5 {[%emt 0:01:39]} exd5 {[%emt 0:00:10]} 6. e5 {[%emt 0:01:13]} c5 {[%emt 0:01:11]} 7. Nf3 {[%emt 0:03:44]} Nc6 {[%emt 0:00:54]} 8. Be3 {[%emt 0:10:35]} cxd4 {[%emt 0:00:57]} 9. Bxd4 {[%emt 0:00:20]} Nxd4 {[%emt 0:04:02]} 10. Nxd4 {[%emt 0:00:14]} Bb4+ {[%emt 0:00:08]} 11. Nd2 {[%emt 0:01:32]} Qe7 {[%emt 0:06:58]} 12. O-O {[%emt 1:11:17]} Qd8 1/2-1/2

[Event "Kuwait Championship Stage-I 2024"]
[Site "Qadsiya"]
[Date "2024.01.27"]
[Round "5.3"]
[White "Hashem, Khaled"]
[Black "Alabdaljader, Mohammed"]
[Result "0-1"]
[ECO "E17"]
[WhiteElo "1868"]
[BlackElo "1353"]
[Annotator "NA RC COMBH"]
[PlyCount "104"]
[EventDate "2024.01.22"]
[EventType "swiss"]
[EventCountry "KUW"]
[SourceTitle "playchess.com"]
[Source "ChessBase"]
[SourceQuality "1"]
[TimeControl "5400+30"]

1. Nf3 {[%emt 0:00:03]} Nf6 {[%emt 0:00:12]} 2. g3 {[%emt 0:00:01]} e6 {[%emt 0:00:25]} 3. Bg2 {[%emt 0:00:06]} b6 {[%emt 0:00:32]} 4. O-O {[%emt 0:00:11]} Bb7 {[%emt 0:00:12]} 5. c4 {[%emt 0:04:27]} Be7 {[%emt 0:00:53]} 6. d4 {[%emt 0:00:42]} d6 {[%emt 0:00:37]} 7. Nc3 {[%emt 0:00:08]} Ne4 {[%emt 0:00:49]} 8. Qc2 {[%emt 0:00:40]} Nxc3 {[%emt 0:02:36]} 9. Qxc3 {[%emt 0:00:14]} Nd7 {[%emt 0:00:15]} 10. Be3 {[%emt 0:14:05]} O-O {[%emt 0:02:59]} 11. Rad1 {[%emt 0:02:53]} Be4 {[%emt 0:03:15]} 12. Ne1 {[%emt 0:01:22]} Bxg2 {[%emt 0:00:23]} 13. Nxg2 {[%emt 0:00:02]} Rc8 {[%emt 0:01:39]} 14. b4 {[%emt 0:01:45]} c6 {[%emt 0:02:16]} 15. Qb3 {[%emt 0:13:35]} Qc7 {[%emt 0:05:07]} 16. Nf4 {[%emt 0:01:29]} d5 {[%emt 0:02:51]} 17. cxd5 {[%emt 0:02:29]} cxd5 {[%emt 0:03:55]} 18. Rc1 {[%emt 0:00:05]} Qd6 {[%emt 0:02:22]} 19. Nd3 {[%emt 0:00:26]} Bf6 {[%emt 0:03:17]} 20. Qa4 {[%emt 0:05:30]} e5 {[%emt 0:13:50]} 21. dxe5 {[%emt 0:08:29]} Nxe5 {[%emt 0:00:58]} 22. Nxe5 {[%emt 0:01:21]} Qxe5 {[%emt 0:00:48]} 23. Qxa7 {[%emt 0:01:42]} d4 {[%emt 0:00:22]} 24. Bf4 {[%emt 0:05:01]} Qxe2 {[%emt 0:01:15]} 25. Qxb6 {[%emt 0:00:27]} d3 {[%emt 0:12:54]} 26. Rcd1 {[%emt 0:14:23]} Rfe8 {[%emt 0:07:21]} 27. Rd2 {[%emt 0:06:41]} Qf3 {[%emt 0:04:43]} 28. Rfd1 {[%emt 0:03:02]} Rcd8 {[%emt 0:03:19]} 29. Be3 {[%emt 0:00:51]} Qe4 {[%emt 0:06:04]} 30. Qa6 {[%emt 0:06:08]} Qxb4 {[%emt 0:05:51]} 31. Rxd3 {[%emt 0:00:35]} Ra8 {[%emt 0:00:23]} 32. Qc6 {[%emt 0:00:36]} Rec8 {[%emt 0:01:50]} 33. Qd5 {[%emt 0:00:02]} h6 {[%emt 0:00:34]} 34. Qb3 {[%emt 0:02:51]} Qg4 {[%emt 0:01:12]} 35. Rd7 {[%emt 0:00:39]} Qh5 {[%emt 0:01:07]} 36. R1d5 {[%emt 0:01:55]} Qe2 {[%emt 0:03:29]} 37. a4 {[%emt 0:01:47]} Rcb8 {[%emt 0:01:36]} 38. Rb5 {[%emt 0:00:15]} Rxb5 {[%emt 0:01:33]} 39. axb5 {[%emt 0:00:49]} Ra1+ {[%emt 0:00:56]} 40. Kg2 {[%emt 0:00:11]} Qf1+ {[%emt 0:00:33]} 41. Kf3 {[%emt 0:00:01]} Qh1+ {[%emt 0:00:27]} 42. Ke2 {[%emt 0:01:30]} Qe1+ {[%emt 0:01:34]} 43. Kf3 {[%emt 0:00:41]} Qh1+ {[%emt 0:00:31]} 44. Ke2 {[%emt 0:01:46]} Rb1 {[%emt 0:01:40]} 45. Qxf7+ {[%emt 0:00:08]} Kh7 {[%emt 0:00:40]} 46. Qd5 {[%emt 0:00:23]} Qf1+ {[%emt 0:00:52]} 47. Kf3 {[%emt 0:00:15]} Qh1+ {[%emt 0:00:15]} 48. Kg4 {[%emt 0:00:31]} Rb4+ {[%emt 0:00:20]} 49. f4 {[%emt 0:00:00]} Qxh2 {[%emt 0:01:12]} 50. Qd3+ {[%emt 0:01:42]} Kh8 {[%emt 0:00:20]} 51. Qd5 {[%emt 0:00:33]} Qe2+ {[%emt 0:00:26]} 52. Qf3 {[%emt 0:00:02]} h5+ {[%emt 0:03:00]} 0-1